[Event "*** Titled Tuesday Blitz"]
[Site "Chess.com"]
[Date "2020.10.27"]
[Round "5"]
[White "BJthechessgod"]
[Black "juancruzarias"]
[Result "1/2-1/2"]
[WhiteElo "2304"]
[BlackElo "2524"]
[TimeControl "180+1"]
[EndTime "10:57:36 PDT"]
[Termination "Game drawn - insufficient material"]

1. e4 {[%clk 0:03:00.9]} 1... e6 {[%clk 0:02:58.7]} 2. d4 {[%clk 0:03:00.7]}
2... d5 {[%clk 0:02:59.1]} 3. Nc3 {[%clk 0:03:01.6]} 3... Nf6 {[%clk 0:02:58.6]}
4. e5 {[%clk 0:03:00.5]} 4... Nfd7 {[%clk 0:02:57.7]} 5. f4 {[%clk 0:03:01.4]}
5... c5 {[%clk 0:02:58.1]} 6. Nf3 {[%clk 0:02:59.4]} 6... Nc6 {[%clk 0:02:58.5]}
7. Be3 {[%clk 0:03:00]} 7... Be7 {[%clk 0:02:58.5]} 8. Qd2 {[%clk 0:02:58.7]}
8... O-O {[%clk 0:02:59]} 9. Be2 {[%clk 0:02:57.6]} 9... Rb8 {[%clk 0:02:58.2]}
10. Nd1 {[%clk 0:02:57.3]} 10... b6 {[%clk 0:02:55.6]} 11. O-O {[%clk
0:02:56.5]} 11... f5 {[%clk 0:02:49.8]} 12. c3 {[%clk 0:02:55.5]} 12... b5
{[%clk 0:02:45.9]} 13. dxc5 {[%clk 0:02:49.6]} 13... Nxc5 {[%clk 0:02:44.9]} 14.
Nd4 {[%clk 0:02:46.5]} 14... Nxd4 {[%clk 0:02:42.4]} 15. Bxd4 {[%clk 0:02:42.7]}
15... Ne4 {[%clk 0:02:42.8]} 16. Qe3 {[%clk 0:02:42.4]} 16... a5 {[%clk
0:02:37.5]} 17. Nf2 {[%clk 0:02:38.3]} 17... Qc7 {[%clk 0:02:25.3]} 18. Nxe4
{[%clk 0:02:35]} 18... dxe4 {[%clk 0:02:26.2]} 19. Rad1 {[%clk 0:02:30.5]} 19...
b4 {[%clk 0:02:20.6]} 20. c4 {[%clk 0:02:28.1]} 20... Bb7 {[%clk 0:02:02.6]} 21.
b3 {[%clk 0:02:26.7]} 21... Bc6 {[%clk 0:01:53.4]} 22. Bc5 {[%clk 0:02:12.1]}
22... Rfd8 {[%clk 0:01:49.4]} 23. Rxd8+ {[%clk 0:02:06.2]} 23... Qxd8 {[%clk
0:01:28.2]} 24. Rd1 {[%clk 0:02:02.4]} 24... Qc7 {[%clk 0:01:25.9]} 25. Bd6
{[%clk 0:02:00.7]} 25... Bxd6 {[%clk 0:01:25.2]} 26. exd6 {[%clk 0:02:01.6]}
26... Qd7 {[%clk 0:01:15.6]} 27. Qc5 {[%clk 0:01:52.2]} 27... a4 {[%clk
0:01:01.6]} 28. Qe5 {[%clk 0:01:31.7]} 28... axb3 {[%clk 0:01:00.8]} 29. axb3
{[%clk 0:01:30.9]} 29... Kf7 {[%clk 0:00:52.4]} 30. c5 {[%clk 0:01:26.7]} 30...
Bd5 {[%clk 0:00:52.7]} 31. Rxd5 {[%clk 0:01:22.8]} 31... exd5 {[%clk 0:00:51.3]}
32. Qxd5+ {[%clk 0:01:23.7]} 32... Qe6 {[%clk 0:00:43.1]} 33. Qd4 {[%clk
0:01:13.6]} 33... Qf6 {[%clk 0:00:40]} 34. Bc4+ {[%clk 0:01:12.1]} 34... Ke8
{[%clk 0:00:39.6]} 35. Qd5 {[%clk 0:01:06.2]} 35... Rd8 {[%clk 0:00:26.7]} 36.
h3 {[%clk 0:00:53.8]} 36... e3 {[%clk 0:00:22.9]} 37. Qg8+ {[%clk 0:00:41.8]}
37... Kd7 {[%clk 0:00:22.7]} 38. Bb5+ {[%clk 0:00:36.1]} 38... Kc8 {[%clk
0:00:22.5]} 39. Qd5 {[%clk 0:00:33.9]} 39... Qa1+ {[%clk 0:00:20]} 40. Kh2
{[%clk 0:00:30.3]} 40... Qa5 {[%clk 0:00:20.9]} 41. Qc6+ {[%clk 0:00:28.3]}
41... Kb8 {[%clk 0:00:21.3]} 42. Ba6 {[%clk 0:00:22.4]} 42... Rd7 {[%clk
0:00:21.6]} 43. Qc8+ {[%clk 0:00:10.8]} 43... Ka7 {[%clk 0:00:21.2]} 44. Qxd7+
{[%clk 0:00:11.4]} 44... Kxa6 {[%clk 0:00:21.4]} 45. c6 {[%clk 0:00:11.9]} 45...
Qc5 {[%clk 0:00:08.3]} 46. Qb7+ {[%clk 0:00:11.5]} 46... Ka5 {[%clk 0:00:08.1]}
47. c7 {[%clk 0:00:12.4]} 47... Qxd6 {[%clk 0:00:07.9]} 48. Qa7+ {[%clk
0:00:09.8]} 48... Kb5 {[%clk 0:00:07.6]} 49. Qb7+ {[%clk 0:00:10]} 49... Ka5
{[%clk 0:00:07.1]} 50. Qa7+ {[%clk 0:00:06.2]} 50... Kb5 {[%clk 0:00:07.1]} 51.
Qxe3 {[%clk 0:00:07]} 51... Qxc7 {[%clk 0:00:07.1]} 52. Qe5+ {[%clk 0:00:07.9]}
52... Qc5 {[%clk 0:00:06.9]} 53. Kg3 {[%clk 0:00:07.6]} 53... g6 {[%clk
0:00:05.9]} 54. Kh4 {[%clk 0:00:07.4]} 54... Kc6 {[%clk 0:00:06.2]} 55. Kg5
{[%clk 0:00:07.9]} 55... Qxe5 {[%clk 0:00:05.8]} 56. fxe5 {[%clk 0:00:07.4]}
56... Kd7 {[%clk 0:00:06.7]} 57. Kf6 {[%clk 0:00:08]} 57... Ke8 {[%clk
0:00:07.2]} 58. e6 {[%clk 0:00:07.6]} 58... f4 {[%clk 0:00:07.1]} 59. h4 {[%clk
0:00:07.1]} 59... Kf8 {[%clk 0:00:06.7]} 60. Ke5 {[%clk 0:00:06.6]} 60... Ke7
{[%clk 0:00:06.9]} 61. Kxf4 {[%clk 0:00:06.6]} 61... Kxe6 {[%clk 0:00:07.8]} 62.
Kg5 {[%clk 0:00:07.5]} 62... Kd5 {[%clk 0:00:07.8]} 63. Kh6 {[%clk 0:00:08.4]}
63... Kd4 {[%clk 0:00:08.1]} 64. Kxh7 {[%clk 0:00:09.3]} 64... Kc3 {[%clk
0:00:08.4]} 65. Kxg6 {[%clk 0:00:09.8]} 65... Kxb3 {[%clk 0:00:08.7]} 66. h5
{[%clk 0:00:10.7]} 66... Ka2 {[%clk 0:00:07.7]} 67. h6 {[%clk 0:00:11.6]} 67...
b3 {[%clk 0:00:08.4]} 68. h7 {[%clk 0:00:12.5]} 68... b2 {[%clk 0:00:09.3]} 69.
h8=Q {[%clk 0:00:13.4]} 69... b1=Q+ {[%clk 0:00:09.7]} 70. Kf7 {[%clk 0:00:12]}
70... Qb7+ {[%clk 0:00:09.3]} 71. Kg8 {[%clk 0:00:11.9]} 71... Qxg2+ {[%clk
0:00:09.4]} 72. Kh7 {[%clk 0:00:12.8]} 72... Qh3+ {[%clk 0:00:08.8]} 73. Kg8
{[%clk 0:00:13]} 73... Qe6+ {[%clk 0:00:08.8]} 74. Kg7 {[%clk 0:00:13.1]} 74...
Qe5+ {[%clk 0:00:07.8]} 75. Kg8 {[%clk 0:00:13.4]} 75... Qxh8+ {[%clk
0:00:08.7]} 76. Kxh8 {[%clk 0:00:14.3]} 1/2-1/2

[Event "*** Titled Tuesday Blitz"]
[Site "Chess.com"]
[Date "2020.10.27"]
[Round "5"]
[White "totoro9"]
[Black "chesstrainer2042"]
[Result "1/2-1/2"]
[WhiteElo "2275"]
[BlackElo "2414"]
[TimeControl "180+1"]
[EndTime "10:57:39 PDT"]
[Termination "Game drawn - insufficient material"]

1. e4 {[%clk 0:03:00.9]} 1... e5 {[%clk 0:02:59.1]} 2. Nf3 {[%clk 0:03:01]} 2...
Nc6 {[%clk 0:02:59.3]} 3. Bc4 {[%clk 0:03:01.3]} 3... Bc5 {[%clk 0:02:57.9]} 4.
O-O {[%clk 0:02:57.4]} 4... Nf6 {[%clk 0:02:57.4]} 5. d3 {[%clk 0:02:57.5]} 5...
d6 {[%clk 0:02:56.5]} 6. c3 {[%clk 0:02:56.9]} 6... O-O {[%clk 0:02:54.8]} 7. h3
{[%clk 0:02:55.7]} 7... a5 {[%clk 0:02:53.5]} 8. Re1 {[%clk 0:02:50.7]} 8... h6
{[%clk 0:02:50]} 9. Nbd2 {[%clk 0:02:49.7]} 9... Be6 {[%clk 0:02:48.3]} 10. Bb5
{[%clk 0:02:49.3]} 10... Ba7 {[%clk 0:02:39.3]} 11. Nf1 {[%clk 0:02:45.6]} 11...
Ne7 {[%clk 0:02:39.3]} 12. d4 {[%clk 0:02:43.4]} 12... Ng6 {[%clk 0:02:38.7]}
13. Ng3 {[%clk 0:02:40.2]} 13... c6 {[%clk 0:02:39]} 14. Ba4 {[%clk 0:02:39.7]}
14... Qc7 {[%clk 0:02:31.1]} 15. Bc2 {[%clk 0:02:33.2]} 15... Rad8 {[%clk
0:02:30.6]} 16. Be3 {[%clk 0:02:11.6]} 16... b5 {[%clk 0:02:29.2]} 17. a4 {[%clk
0:01:42.1]} 17... b4 {[%clk 0:02:28.7]} 18. Qe2 {[%clk 0:00:57.7]} 18... Rfe8
{[%clk 0:02:26.9]} 19. dxe5 {[%clk 0:00:49.3]} 19... dxe5 {[%clk 0:02:23.3]} 20.
Bxa7 {[%clk 0:00:42.5]} 20... Qxa7 {[%clk 0:02:22.3]} 21. Rad1 {[%clk
0:00:42.6]} 21... bxc3 {[%clk 0:02:14.9]} 22. bxc3 {[%clk 0:00:42.1]} 22... Qc5
{[%clk 0:02:15]} 23. Qe3 {[%clk 0:00:40.1]} 23... Qxe3 {[%clk 0:02:12.6]} 24.
fxe3 {[%clk 0:00:40.4]} 24... c5 {[%clk 0:02:05.5]} 25. Nf5 {[%clk 0:00:39.3]}
25... Rb8 {[%clk 0:01:43.2]} 26. Nd6 {[%clk 0:00:39]} 26... Red8 {[%clk
0:01:41.6]} 27. Nb5 {[%clk 0:00:38.8]} 27... Bc4 {[%clk 0:01:38.1]} 28. Rxd8+
{[%clk 0:00:22.7]} 28... Rxd8 {[%clk 0:01:37.8]} 29. Rd1 {[%clk 0:00:23.3]}
29... Rxd1+ {[%clk 0:01:36.2]} 30. Bxd1 {[%clk 0:00:23.6]} 30... Nxe4 {[%clk
0:01:27.2]} 31. Bc2 {[%clk 0:00:22.4]} 31... f5 {[%clk 0:01:18.1]} 32. Bxe4
{[%clk 0:00:21.9]} 32... fxe4 {[%clk 0:01:17.7]} 33. Nd2 {[%clk 0:00:22.1]}
33... Bd3 {[%clk 0:01:17.1]} 34. Nd6 {[%clk 0:00:21.1]} 34... Bc2 {[%clk
0:01:11.3]} 35. N2xe4 {[%clk 0:00:17.8]} 35... Bxa4 {[%clk 0:01:09.8]} 36. Nxc5
{[%clk 0:00:15.5]} 36... Bc2 {[%clk 0:01:08.9]} 37. Nc4 {[%clk 0:00:15.5]} 37...
a4 {[%clk 0:01:08.2]} 38. Na3 {[%clk 0:00:15.7]} 38... Bb3 {[%clk 0:01:04.2]}
39. Kf2 {[%clk 0:00:15.6]} 39... Kf7 {[%clk 0:00:59.2]} 40. Ke2 {[%clk
0:00:13.5]} 40... Ke7 {[%clk 0:00:58]} 41. Nxb3 {[%clk 0:00:11.8]} 41... axb3
{[%clk 0:00:57.5]} 42. Kd3 {[%clk 0:00:12.4]} 42... h5 {[%clk 0:00:32.8]} 43.
Kc4 {[%clk 0:00:12.3]} 43... b2 {[%clk 0:00:32.6]} 44. Kb4 {[%clk 0:00:12.2]}
44... e4 {[%clk 0:00:29.5]} 45. Kb3 {[%clk 0:00:10.4]} 45... Nh4 {[%clk
0:00:26.7]} 46. g4 {[%clk 0:00:09]} 46... Ng2 {[%clk 0:00:25.5]} 47. gxh5 {[%clk
0:00:07.5]} 47... Nxe3 {[%clk 0:00:24.6]} 48. Kxb2 {[%clk 0:00:07.7]} 48... Nd5
{[%clk 0:00:22.1]} 49. Kc2 {[%clk 0:00:06.9]} 49... Nf6 {[%clk 0:00:20.5]} 50.
Kd2 {[%clk 0:00:07]} 50... Nxh5 {[%clk 0:00:20.1]} 51. Ke3 {[%clk 0:00:07.4]}
51... Nf6 {[%clk 0:00:20.1]} 52. Nc4 {[%clk 0:00:03.8]} 52... Nd5+ {[%clk
0:00:19.2]} 53. Kxe4 {[%clk 0:00:03.3]} 53... Nxc3+ {[%clk 0:00:19.4]} 54. Kf5
{[%clk 0:00:03.1]} 54... Nd5 {[%clk 0:00:16.6]} 55. Kg6 {[%clk 0:00:03.3]} 55...
Kf8 {[%clk 0:00:16.3]} 56. Ne5 {[%clk 0:00:03.6]} 56... Nf4+ {[%clk 0:00:16.3]}
57. Kg5 {[%clk 0:00:03.6]} 57... Nxh3+ {[%clk 0:00:15.9]} 58. Kg6 {[%clk
0:00:04.1]} 58... Nf4+ {[%clk 0:00:14.9]} 59. Kg5 {[%clk 0:00:04.5]} 59... Ne6+
{[%clk 0:00:14.1]} 60. Kg6 {[%clk 0:00:05]} 60... Nc5 {[%clk 0:00:13.5]} 61. Nf3
{[%clk 0:00:05.1]} 61... Nd7 {[%clk 0:00:10.4]} 62. Nh4 {[%clk 0:00:03.5]} 62...
Kg8 {[%clk 0:00:09.7]} 63. Nf5 {[%clk 0:00:02.9]} 63... Nf8+ {[%clk 0:00:10]}
64. Kg5 {[%clk 0:00:03.3]} 64... Ne6+ {[%clk 0:00:09.8]} 65. Kg6 {[%clk
0:00:03.8]} 65... Nf4+ {[%clk 0:00:09.7]} 66. Kg5 {[%clk 0:00:03.9]} 66... Ne6+
{[%clk 0:00:10]} 67. Kg6 {[%clk 0:00:04.3]} 67... Kf8 {[%clk 0:00:10]} 68. Nxg7
{[%clk 0:00:04.2]} 1/2-1/2

[Event "*** Titled Tuesday Blitz"]
[Site "Chess.com"]
[Date "2020.10.27"]
[Round "5"]
[White "obliviate12"]
[Black "Semen_Khanin"]
[Result "0-1"]
[WhiteElo "2723"]
[BlackElo "2763"]
[TimeControl "180+1"]
[EndTime "10:58:11 PDT"]
[Termination "Semen_Khanin won by resignation"]

1. e4 {[%clk 0:03:00.6]} 1... c5 {[%clk 0:02:59.4]} 2. Nf3 {[%clk 0:03:00.6]}
2... e6 {[%clk 0:02:59.6]} 3. d4 {[%clk 0:02:59.7]} 3... cxd4 {[%clk 0:03:00.5]}
4. Nxd4 {[%clk 0:03:00.6]} 4... Nc6 {[%clk 0:03:01]} 5. Nc3 {[%clk 0:02:59.3]}
5... Qc7 {[%clk 0:03:01.7]} 6. g3 {[%clk 0:02:59.7]} 6... a6 {[%clk 0:03:00.9]}
7. Bg2 {[%clk 0:02:59.9]} 7... Nf6 {[%clk 0:02:57.2]} 8. O-O {[%clk 0:03:00]}
8... Bc5 {[%clk 0:02:53.9]} 9. Nxc6 {[%clk 0:02:53]} 9... dxc6 {[%clk
0:02:26.6]} 10. Na4 {[%clk 0:02:48.3]} 10... Ba7 {[%clk 0:02:24.1]} 11. c4
{[%clk 0:02:41.4]} 11... e5 {[%clk 0:02:22]} 12. c5 {[%clk 0:02:27.8]} 12... Be6
{[%clk 0:02:21.4]} 13. Qc2 {[%clk 0:02:23.6]} 13... Rd8 {[%clk 0:02:21]} 14. b4
{[%clk 0:02:19.9]} 14... O-O {[%clk 0:02:20.4]} 15. h3 {[%clk 0:02:17.4]} 15...
Qe7 {[%clk 0:02:16.6]} 16. Bb2 {[%clk 0:01:53.1]} 16... Nd7 {[%clk 0:02:13.6]}
17. a3 {[%clk 0:01:52.2]} 17... Bb8 {[%clk 0:02:01.7]} 18. Rad1 {[%clk
0:01:50.9]} 18... Bc7 {[%clk 0:02:01.3]} 19. Bc3 {[%clk 0:01:46.2]} 19... Rfe8
{[%clk 0:02:00.3]} 20. Nb2 {[%clk 0:01:46.6]} 20... Nf8 {[%clk 0:01:59.1]} 21.
Qe2 {[%clk 0:01:45.5]} 21... Rxd1 {[%clk 0:01:58]} 22. Rxd1 {[%clk 0:01:44.9]}
22... Rd8 {[%clk 0:01:58.5]} 23. Rxd8 {[%clk 0:01:43]} 23... Qxd8 {[%clk
0:01:57.9]} 24. Bf1 {[%clk 0:01:40.4]} 24... f6 {[%clk 0:01:44.2]} 25. Qc2
{[%clk 0:01:32.1]} 25... Qd7 {[%clk 0:01:40]} 26. Kh2 {[%clk 0:01:31.3]} 26...
Bf7 {[%clk 0:01:40.2]} 27. Bc4 {[%clk 0:01:26.5]} 27... Ne6 {[%clk 0:01:37.2]}
28. Qd3 {[%clk 0:01:23.2]} 28... Qxd3 {[%clk 0:01:35.8]} 29. Nxd3 {[%clk
0:01:24.1]} 29... Kf8 {[%clk 0:01:35.6]} 30. Kg2 {[%clk 0:01:24.2]} 30... Ke7
{[%clk 0:01:34.7]} 31. f3 {[%clk 0:01:24.7]} 31... h5 {[%clk 0:01:33.9]} 32. h4
{[%clk 0:01:22.6]} 32... Be8 {[%clk 0:01:21.7]} 33. Kf2 {[%clk 0:01:21.3]} 33...
Nd4 {[%clk 0:01:18.5]} 34. f4 {[%clk 0:01:10.8]} 34... Bg6 {[%clk 0:01:02.6]}
35. Bxd4 {[%clk 0:01:08.6]} 35... exd4 {[%clk 0:01:00.8]} 36. Kf3 {[%clk
0:01:09.5]} 36... f5 {[%clk 0:00:47.8]} 37. e5 {[%clk 0:01:06.2]} 37... Bf7
{[%clk 0:00:44.8]} 38. Bxf7 {[%clk 0:00:50.5]} 38... Kxf7 {[%clk 0:00:44.6]} 39.
Nc1 {[%clk 0:00:41.6]} 39... Ke6 {[%clk 0:00:43.8]} 40. Ke2 {[%clk 0:00:42.2]}
40... Kd5 {[%clk 0:00:35.4]} 41. Kd3 {[%clk 0:00:42.4]} 41... b6 {[%clk
0:00:34.6]} 42. Nb3 {[%clk 0:00:38.3]} 42... bxc5 {[%clk 0:00:31.1]} 43. bxc5
{[%clk 0:00:21.2]} 43... g6 {[%clk 0:00:28.1]} 44. Nxd4 {[%clk 0:00:21.3]} 44...
Bd8 {[%clk 0:00:28.3]} 45. Nb3 {[%clk 0:00:19.2]} 45... Bc7 {[%clk 0:00:28]} 46.
a4 {[%clk 0:00:10.9]} 46... Bd8 {[%clk 0:00:26.8]} 47. Nd4 {[%clk 0:00:09.3]}
47... Ba5 {[%clk 0:00:26.4]} 48. Nf3 {[%clk 0:00:08.6]} 48... Kxc5 {[%clk
0:00:24]} 49. Nd4 {[%clk 0:00:03.4]} 49... Kd5 {[%clk 0:00:23.8]} 50. Nc2 {[%clk
0:00:02.4]} 50... Bb6 {[%clk 0:00:16]} 51. Nb4+ {[%clk 0:00:01.6]} 51... Ke6
{[%clk 0:00:14.6]} 52. Ke2 {[%clk 0:00:02]} 52... c5 {[%clk 0:00:13.1]} 53. Nxa6
{[%clk 0:00:02.6]} 53... c4 {[%clk 0:00:13.7]} 54. Nb4 {[%clk 0:00:02.9]} 54...
Bc5 {[%clk 0:00:13.8]} 55. Na2 {[%clk 0:00:02.9]} 55... Kd5 {[%clk 0:00:13.7]}
56. Nc3+ {[%clk 0:00:03]} 56... Kc6 {[%clk 0:00:13.8]} 57. a5 {[%clk 0:00:02.8]}
57... Bb4 {[%clk 0:00:13.7]} 58. Na4 {[%clk 0:00:01.6]} 58... Bxa5 {[%clk
0:00:13.7]} 59. Nb2 {[%clk 0:00:02.5]} 59... Kd5 {[%clk 0:00:13.8]} 60. Nd1
{[%clk 0:00:02.6]} 60... Bb4 {[%clk 0:00:09.5]} 61. Ne3+ {[%clk 0:00:02.9]}
61... Kc5 {[%clk 0:00:09.3]} 62. Nc2 {[%clk 0:00:03.8]} 62... Bc3 {[%clk
0:00:08.8]} 63. Ne3 {[%clk 0:00:04.4]} 63... Bb2 {[%clk 0:00:07.3]} 64. Nc2
{[%clk 0:00:05.3]} 64... Bc3 {[%clk 0:00:03.4]} 65. Ke3 {[%clk 0:00:06.2]} 65...
Ba5 {[%clk 0:00:02.5]} 66. Kf3 {[%clk 0:00:06.2]} 66... Kd5 {[%clk 0:00:03.1]}
67. Ne3+ {[%clk 0:00:06]} 67... Kd4 {[%clk 0:00:03.2]} 68. Ke2 {[%clk
0:00:06.9]} 68... c3 {[%clk 0:00:02.7]} 69. Nc2+ {[%clk 0:00:04.2]} 69... Kc4
{[%clk 0:00:02.9]} 70. Na3+ {[%clk 0:00:04.6]} 70... Kb3 {[%clk 0:00:02.9]} 71.
Nb5 {[%clk 0:00:04.8]} 71... c2 {[%clk 0:00:03]} 72. Nd4+ {[%clk 0:00:05.1]}
72... Kb2 {[%clk 0:00:03.4]} 73. Nxc2 {[%clk 0:00:04.8]} 73... Kxc2 {[%clk
0:00:04]} 74. e6 {[%clk 0:00:04.8]} 74... Bb4 {[%clk 0:00:04.5]} 75. Ke3 {[%clk
0:00:05.7]} 75... Kc3 {[%clk 0:00:04.9]} 0-1

[Event "*** Titled Tuesday Blitz"]
[Site "Chess.com"]
[Date "2020.10.27"]
[Round "5"]
[White "MF1966Idrisov"]
[Black "davidkalashian"]
[Result "0-1"]
[WhiteElo "2328"]
[BlackElo "2567"]
[TimeControl "180+1"]
[EndTime "10:58:48 PDT"]
[Termination "davidkalashian won on time"]

1. Nf3 {[%clk 0:03:00.9]} 1... Nf6 {[%clk 0:02:54.7]} 2. c4 {[%clk 0:03:00.6]}
2... e6 {[%clk 0:02:54.5]} 3. d4 {[%clk 0:02:59.7]} 3... b6 {[%clk 0:02:52.8]}
4. Nc3 {[%clk 0:02:54.2]} 4... Bb4 {[%clk 0:02:48.4]} 5. Bd2 {[%clk 0:02:52.9]}
5... Bb7 {[%clk 0:02:47]} 6. g3 {[%clk 0:02:52.2]} 6... O-O {[%clk 0:02:46.2]}
7. Bg2 {[%clk 0:02:52.2]} 7... c5 {[%clk 0:02:46.9]} 8. O-O {[%clk 0:02:50.6]}
8... cxd4 {[%clk 0:02:46.3]} 9. Nxd4 {[%clk 0:02:49.5]} 9... Bxg2 {[%clk
0:02:46.4]} 10. Kxg2 {[%clk 0:02:49.5]} 10... Nc6 {[%clk 0:02:42.4]} 11. e3
{[%clk 0:02:42.5]} 11... Nxd4 {[%clk 0:02:40.3]} 12. exd4 {[%clk 0:02:42.3]}
12... Qc7 {[%clk 0:02:39.2]} 13. Qb3 {[%clk 0:02:40.2]} 13... Bxc3 {[%clk
0:02:35.5]} 14. Bxc3 {[%clk 0:02:34.8]} 14... Rac8 {[%clk 0:02:31.6]} 15. Bb4
{[%clk 0:02:32]} 15... Rfd8 {[%clk 0:02:27.4]} 16. Rac1 {[%clk 0:02:28.5]} 16...
Qb7+ {[%clk 0:02:23.1]} 17. Kg1 {[%clk 0:02:27.1]} 17... d5 {[%clk 0:02:23]} 18.
c5 {[%clk 0:02:24.9]} 18... bxc5 {[%clk 0:02:19.7]} 19. Bxc5 {[%clk 0:02:24.8]}
19... Qxb3 {[%clk 0:02:12.8]} 20. axb3 {[%clk 0:02:24.7]} 20... a6 {[%clk
0:02:09.6]} 21. Ra1 {[%clk 0:02:22.7]} 21... Rc6 {[%clk 0:02:01.3]} 22. Ra3
{[%clk 0:02:14.5]} 22... Ne4 {[%clk 0:01:59.7]} 23. b4 {[%clk 0:02:12.8]} 23...
Rb8 {[%clk 0:01:26.8]} 24. Rfa1 {[%clk 0:02:09.7]} 24... h5 {[%clk 0:00:45.3]}
25. Rxa6 {[%clk 0:02:07]} 25... Rxa6 {[%clk 0:00:34.1]} 26. Rxa6 {[%clk
0:02:05.1]} 26... g5 {[%clk 0:00:34.6]} 27. Ra2 {[%clk 0:01:51.8]} 27... g4
{[%clk 0:00:32.9]} 28. Kf1 {[%clk 0:01:49.4]} 28... Kg7 {[%clk 0:00:28.9]} 29.
Ke2 {[%clk 0:01:48]} 29... Kg6 {[%clk 0:00:28.3]} 30. f3 {[%clk 0:01:48.3]}
30... gxf3+ {[%clk 0:00:25]} 31. Kxf3 {[%clk 0:01:48.3]} 31... Kf5 {[%clk
0:00:24.4]} 32. Ra3 {[%clk 0:01:11.1]} 32... f6 {[%clk 0:00:21.6]} 33. Rd3
{[%clk 0:01:07.5]} 33... Rb7 {[%clk 0:00:14]} 34. h4 {[%clk 0:01:06.2]} 34...
Rb8 {[%clk 0:00:13.3]} 35. Ra3 {[%clk 0:01:04.7]} 35... e5 {[%clk 0:00:12.8]}
36. Ra6 {[%clk 0:01:02.5]} 36... Nxc5 {[%clk 0:00:09.2]} 37. dxc5 {[%clk
0:00:58.2]} 37... Rxb4 {[%clk 0:00:09.2]} 38. Rd6 {[%clk 0:00:58.1]} 38... Rb3+
{[%clk 0:00:08.8]} 39. Ke2 {[%clk 0:00:55.9]} 39... Rxb2+ {[%clk 0:00:09.7]} 40.
Kd3 {[%clk 0:00:56.2]} 40... d4 {[%clk 0:00:09.1]} 41. c6 {[%clk 0:00:53.4]}
41... Rb3+ {[%clk 0:00:09.6]} 42. Kc4 {[%clk 0:00:53.4]} 42... Rxg3 {[%clk
0:00:09.3]} 43. Rd5 {[%clk 0:00:50.6]} 43... Rc3+ {[%clk 0:00:09.2]} 44. Kb5
{[%clk 0:00:50.7]} 44... Ke6 {[%clk 0:00:08]} 45. Rc5 {[%clk 0:00:49.8]} 45...
Rxc5+ {[%clk 0:00:07.4]} 46. Kxc5 {[%clk 0:00:50]} 46... d3 {[%clk 0:00:08.3]}
47. Kb6 {[%clk 0:00:50.3]} 47... d2 {[%clk 0:00:07.5]} 48. c7 {[%clk 0:00:50.5]}
48... d1=Q {[%clk 0:00:07.5]} 49. c8=Q+ {[%clk 0:00:50.5]} 49... Qd7 {[%clk
0:00:08.2]} 50. Qg8+ {[%clk 0:00:48.4]} 50... Kf5 {[%clk 0:00:07.3]} 51. Qg3
{[%clk 0:00:45.3]} 51... Qd4+ {[%clk 0:00:07]} 52. Kc6 {[%clk 0:00:44.5]} 52...
Qf4 {[%clk 0:00:06.6]} 53. Qh3+ {[%clk 0:00:40.4]} 53... Kg6 {[%clk 0:00:05.7]}
54. Kd6 {[%clk 0:00:38.5]} 54... Qg4 {[%clk 0:00:04.9]} 55. Qh1 {[%clk
0:00:36.5]} 55... Qd4+ {[%clk 0:00:05.1]} 56. Ke7 {[%clk 0:00:36.1]} 56... Qg4
{[%clk 0:00:05.5]} 57. Qb1+ {[%clk 0:00:34.5]} 57... e4 {[%clk 0:00:05.5]} 58.
Qc2 {[%clk 0:00:32.1]} 58... Qf5 {[%clk 0:00:05.4]} 59. Qg2+ {[%clk 0:00:31.7]}
59... Kh6 {[%clk 0:00:05.7]} 60. Kf8 {[%clk 0:00:31.2]} 60... Qc8+ {[%clk
0:00:04.4]} 61. Kf7 {[%clk 0:00:30.9]} 61... Qd7+ {[%clk 0:00:04.1]} 62. Kxf6
{[%clk 0:00:30.1]} 62... Qd6+ {[%clk 0:00:04.2]} 63. Kf7 {[%clk 0:00:30]} 63...
Qd7+ {[%clk 0:00:03.7]} 64. Kf6 {[%clk 0:00:30.1]} 64... Qd6+ {[%clk 0:00:04.2]}
65. Kf7 {[%clk 0:00:30.3]} 65... Qf4+ {[%clk 0:00:03.5]} 66. Ke7 {[%clk
0:00:27.1]} 66... e3 {[%clk 0:00:04.4]} 67. Qc6+ {[%clk 0:00:25]} 67... Kh7
{[%clk 0:00:04.1]} 68. Qc2+ {[%clk 0:00:24.5]} 68... Kg7 {[%clk 0:00:04.2]} 69.
Qb2+ {[%clk 0:00:22.9]} 69... Kg6 {[%clk 0:00:04.3]} 70. Qc2+ {[%clk 0:00:22.8]}
70... Qf5 {[%clk 0:00:04.7]} 71. Qc6+ {[%clk 0:00:22.5]} 71... Kh7 {[%clk
0:00:04.7]} 72. Qc7 {[%clk 0:00:19.4]} 72... Qe4+ {[%clk 0:00:02.7]} 73. Kf8+
{[%clk 0:00:19.2]} 73... Kg6 {[%clk 0:00:02.7]} 74. Qg7+ {[%clk 0:00:18.1]}
74... Kf5 {[%clk 0:00:03.6]} 75. Qg5+ {[%clk 0:00:17.5]} 75... Ke6 {[%clk
0:00:04.5]} 76. Qh6+ {[%clk 0:00:17.3]} 76... Kd5 {[%clk 0:00:04.6]} 77. Qxh5+
{[%clk 0:00:17.2]} 77... Kd4 {[%clk 0:00:04.7]} 78. Qd1+ {[%clk 0:00:16.4]}
78... Ke5 {[%clk 0:00:04.4]} 79. Qe2 {[%clk 0:00:15.6]} 79... Kf4 {[%clk
0:00:04.2]} 80. h5 {[%clk 0:00:14.4]} 80... Qf5+ {[%clk 0:00:03.9]} 81. Kg7
{[%clk 0:00:13.3]} 81... Qg5+ {[%clk 0:00:04.1]} 82. Kh7 {[%clk 0:00:12.8]}
82... Qe7+ {[%clk 0:00:04.1]} 83. Kg6 {[%clk 0:00:12.3]} 83... Qe6+ {[%clk
0:00:04.3]} 84. Kg7 {[%clk 0:00:11.9]} 84... Kg5 {[%clk 0:00:03.6]} 85. Qg2+
{[%clk 0:00:09.6]} 85... Kxh5 {[%clk 0:00:03.6]} 86. Qh2+ {[%clk 0:00:08]} 86...
Kg4 {[%clk 0:00:04]} 87. Qg2+ {[%clk 0:00:07.9]} 87... Kf4 {[%clk 0:00:04.5]}
88. Qh2+ {[%clk 0:00:08]} 88... Ke4 {[%clk 0:00:04.9]} 89. Qc2+ {[%clk
0:00:07.8]} 89... Kf3 {[%clk 0:00:04.8]} 90. Qd3 {[%clk 0:00:05.4]} 90... Kf2
{[%clk 0:00:04.7]} 91. Qd4 {[%clk 0:00:04.5]} 91... Qf5 {[%clk 0:00:03.8]} 92.
Kh6 {[%clk 0:00:02.7]} 92... Qf3 {[%clk 0:00:04.7]} 93. Kg5 {[%clk 0:00:01.7]}
93... Kg2 {[%clk 0:00:05.6]} 0-1